bitfinex-derivatives/quotes_BNBF0:USTF0_20250617
["timestamp","ask_amount","ask_price","bid_price","bid_amount"]
[1750135740854,0.98847477,656.25,655.87,1.097]
[1750135741060,0.98847477,656.24,655.87,1.097]
[1750135741355,0.98735051,656.23,655.87,1.097]
[1750135741556,0.98735051,656.22,655.87,1.097]
[1750135741756,0.98735051,656.3,655.87,1.097]
[1750135741958,0.98735051,656.29,655.87,1.097]
[1750135742156,0.98735051,656.28,655.87,1.097]
[1750135742359,0.98735051,656.27,655.87,1.097]
[1750135742560,0.98735051,656.26,655.87,1.097]
[1750135742858,0.98735051,656.25,655.87,1.097]
[1750135743060,0.9873528,656.24,655.87,1.097]
[1750135743260,0.9873528,656.23,655.87,1.097]
[1750135743458,0.9873528,656.22,655.87,1.097]
[1750135743656,0.98735297,656.3,655.87,1.097]
[1750135743859,0.98735297,656.29,655.87,1.097]
[1750135744060,0.98735297,656.28,655.87,1.097]
[1750135744262,0.98735297,656.27,655.87,1.097]
[1750135744462,0.51623614,656.31,655.87,1.097]
[1750135744661,0.98735022,656.3,655.87,1.097]
[1750135744860,0.98735022,656.29,655.87,1.097]
[1750135745056,0.98735022,656.28,655.87,1.097]
[1750135745260,0.98735022,656.27,655.87,1.097]
[1750135745458,0.98735022,656.26,655.87,1.097]
[1750135745660,0.98735022,656.25,655.87,1.097]
[1750135745961,0.98735022,656.24,655.87,1.097]
[1750135746158,0.98735022,656.23,655.87,1.097]
[1750135746459,0.9873624,656.22,655.87,1.097]
[1750135746759,0.9873624,656.3,655.87,1.097]
[1750135746958,0.9873624,656.29,655.87,1.097]
[1750135747160,0.9873624,656.28,655.87,1.097]
[1750135747363,0.9873624,656.27,655.87,1.097]
[1750135747564,0.9873797,656.26,655.87,1.097]
[1750135747860,0.9873797,656.25,655.87,1.097]
[1750135748064,0.9873797,656.24,655.88,1.154]
[1750135748259,0.9873797,656.23,655.88,1.154]
[1750135748459,0.9873797,656.22,655.88,1.154]
[1750135748659,0.9873797,656.3,655.89,1.063]
[1750135748862,0.9873797,656.29,655.89,1.063]
[1750135749059,0.98739029,656.28,655.89,1.063]
[1750135749264,0.98739029,656.27,655.89,1.063]
[1750135749461,0.98739029,656.26,655.89,1.063]
[1750135749665,0.98739029,656.25,655.89,1.063]
[1750135749960,0.98739029,656.24,655.89,1.063]
[1750135750166,0.98739029,656.23,655.89,1.063]
[1750135750363,0.98739029,656.22,655.89,1.063]
[1750135750566,0.98739029,656.21,655.89,1.063]
[1750135750868,0.98739029,656.2,655.89,1.063]
[1750135751066,0.98739029,656.19,655.89,1.063]
[1750135751265,0.98739236,656.27,655.89,1.063]
[1750135751565,0.98739236,656.26,655.89,1.063]
[1750135751766,0.98739236,656.25,655.89,1.063]
[1750135751965,0.98739236,656.24,655.89,1.063]
[1750135752168,0.98739236,656.23,655.89,1.063]
[1750135752464,0.98739236,656.22,655.89,1.063]
[1750135752665,0.98739236,656.21,655.89,1.063]
[1750135752868,0.98739236,656.2,655.89,1.063]
[1750135753165,0.98739236,656.19,655.89,1.063]
[1750135753366,0.98739236,656.27,655.89,1.063]
[1750135753563,0.98739236,656.26,655.89,1.063]
[1750135753769,0.98739236,656.25,655.89,1.063]
[1750135754067,0.98739236,656.24,655.89,1.063]
[1750135754268,0.98739236,656.23,655.89,1.063]
[1750135754468,0.98739236,656.22,655.89,1.063]
[1750135754667,0.98739878,656.21,655.89,1.063]
[1750135754866,0.98739878,656.2,655.89,1.063]
[1750135755171,0.98739878,656.19,655.89,1.063]
[1750135755370,0.98739878,656.18,655.89,1.063]
[1750135755670,0.98739878,656.17,655.89,1.063]
[1750135755872,1.5036589,656.26,655.89,1.063]
[1750135756070,0.98739878,656.25,655.89,1.063]
[1750135756267,0.98739878,656.24,655.89,1.063]
[1750135756468,0.98739878,656.23,655.89,1.063]
[1750135756672,0.98739878,656.22,655.89,1.063]
[1750135756872,0.98739878,656.21,655.89,1.063]
[1750135757072,0.98739878,656.2,655.89,1.063]
[1750135757273,0.98739878,656.19,655.89,1.063]
[1750135757568,0.98739878,656.18,655.89,1.063]
[1750135757767,0.98739878,656.17,655.89,1.063]
[1750135757972,0.98739878,656.16,655.89,1.063]
[1750135758167,0.98739878,656.15,655.89,1.063]
[1750135758369,0.98739878,656.24,655.89,1.063]
[1750135758572,0.98739878,656.23,655.89,1.063]
[1750135758769,0.98739878,656.22,655.89,1.063]
[1750135758972,0.98739878,656.21,655.89,1.063]
[1750135759171,0.98739878,656.2,655.89,1.063]
[1750135759370,0.98739878,656.19,655.89,1.063]
[1750135759570,0.98739878,656.18,655.89,1.063]
[1750135759775,0.98739878,656.17,655.88,1.154]
[1750135759970,0.98739878,656.16,655.88,1.154]
[1750135760174,0.98770299,656.15,655.88,1.154]
[1750135760474,0.98770299,656.14,655.88,1.154]
[1750135760674,0.98770299,656.13,655.88,1.154]
[1750135760872,0.98770299,656.23,655.88,1.154]
[1750135761076,0.98770299,656.22,655.88,1.154]
[1750135761274,0.98770299,656.21,655.88,1.154]
[1750135761472,0.98770299,656.2,655.88,1.154]
[1750135761674,0.98770299,656.19,655.88,1.154]
[1750135761872,0.98770299,656.18,655.88,1.154]
[1750135762175,0.98770299,656.17,655.89,0.798]
[1750135762375,0.98770299,656.16,655.89,0.798]
[1750135762674,0.98770299,656.15,655.89,0.798]
[1750135762872,0.98796635,656.14,655.89,0.798]
[1750135763073,0.98796635,656.24,655.89,0.798]
[1750135763270,0.98796635,656.23,655.89,0.798]
[1750135763474,0.98796635,656.22,655.89,0.798]
[1750135763674,0.98796635,656.21,655.89,0.798]
[1750135763873,0.98796635,656.2,655.89,0.798]
[1750135764075,0.98796635,656.19,655.89,0.798]
[1750135764280,0.98796635,656.18,655.89,0.798]
[1750135764480,0.98796635,656.17,655.89,0.798]
[1750135764700,0.98796635,656.16,655.89,0.798]
[1750135764881,0.98796635,656.15,655.89,0.798]
[1750135765082,0.98796635,656.14,655.89,0.798]
[1750135765277,0.98796635,656.13,655.89,0.798]
[1750135765481,0.98796635,656.12,655.89,0.798]
[1750135765682,1.50463882,656.24,655.89,0.798]
[1750135765882,0.98796635,656.23,655.89,0.798]
[1750135766078,1.50463882,656.22,655.89,0.798]
[1750135766283,1.50463882,656.21,655.89,0.798]
[1750135766485,0.98796635,656.2,655.89,0.798]
[1750135766683,0.98796635,656.19,655.89,0.798]
[1750135766880,0.98796635,656.18,655.89,0.798]
[1750135767180,0.98796635,656.17,655.89,0.798]
[1750135767384,0.98796635,656.16,655.89,0.798]
[1750135767681,0.98796635,656.15,655.89,0.798]
[1750135767880,0.98796635,656.14,655.89,0.798]
[1750135768078,0.51667247,656.23,655.89,0.798]
[1750135768079,0.98796635,656.13,655.89,0.798]
[1750135768281,0.51667247,656.23,655.89,0.798]
[1750135768485,0.98866772,656.22,655.89,0.798]
[1750135768781,0.98866772,656.21,655.89,0.798]
[1750135768981,0.98866772,656.2,655.89,0.798]
[1750135769181,0.98866772,656.19,655.89,0.798]
[1750135769382,0.98866772,656.18,655.89,0.798]
[1750135769685,0.98866772,656.17,655.89,0.798]
[1750135769986,0.98866772,656.16,655.89,0.798]
[1750135770281,0.98866772,656.15,655.89,0.798]
[1750135770487,0.98866772,656.14,655.89,0.798]
[1750135770686,0.98866772,656.13,655.89,0.798]
[1750135770981,0.98866772,656.12,655.89,0.798]
[1750135771286,0.98866772,656.11,655.89,0.798]
[1750135771485,0.98866772,656.1,655.89,0.798]
[1750135771682,0.98866772,656.09,655.89,0.798]
[1750135771986,0.98967252,656.08,655.89,0.798]
[1750135772184,1.50676822,656.21,655.89,0.798]
[1750135772381,1.50676822,656.2,655.89,0.798]
[1750135772579,0.98967252,656.19,655.89,0.798]
[1750135772782,0.98967252,656.18,655.89,0.798]
[1750135772985,0.98967252,656.17,655.89,0.798]
[1750135773283,0.98967252,656.16,655.89,0.798]
[1750135773486,0.98967252,656.15,655.89,0.798]
[1750135773685,0.98967252,656.14,655.89,0.798]
[1750135773884,0.98967252,656.13,655.89,0.798]
[1750135774183,0.98967252,656.12,655.89,0.798]
[1750135774382,0.98967252,656.11,655.89,0.798]
[1750135774582,0.98967252,656.1,655.89,0.798]
[1750135774889,0.98967252,656.22,655.89,0.798]
[1750135775186,0.98966726,656.21,655.9,0.897]
[1750135775381,0.98966726,656.2,655.9,0.897]
[1750135775580,0.98966726,656.19,655.9,0.897]
[1750135775781,0.98966726,656.18,655.9,0.897]
[1750135775984,0.98966726,656.17,655.9,0.897]
[1750135776184,0.98966726,656.16,655.9,0.897]
[1750135776388,0.98966892,656.15,655.9,0.897]
[1750135776591,1.1414199,656.25,655.9,0.897]
[1750135776788,1.50676316,656.24,655.9,0.897]
[1750135777087,1.1414199,656.25,655.9,0.897]
[1750135777088,1.50676316,656.23,655.9,0.897]
[1750135777286,0.98966886,656.22,655.9,0.897]
[1750135777490,0.98966886,656.21,655.91,1.224]
[1750135777684,0.98966886,656.2,655.91,1.224]
[1750135777889,0.98966886,656.19,655.91,1.224]
[1750135778089,0.98966886,656.18,655.91,1.224]
[1750135778290,0.98966886,656.17,655.91,1.224]
[1750135778591,0.98966886,656.16,655.91,1.224]
[1750135778786,0.98966886,656.15,655.91,1.224]
[1750135778989,0.98966886,656.14,655.91,1.224]
[1750135779190,0.98966886,656.13,655.91,1.224]
[1750135779392,0.98966886,656.12,655.91,1.224]
[1750135779592,0.98966886,656.11,655.91,1.224]
[1750135779793,0.98966886,656.1,655.91,1.224]
[1750135779991,0.98966886,656.09,655.91,1.224]
[1750135780194,1.50677044,656.22,655.91,1.224]
[1750135780495,0.98966886,656.21,655.91,1.224]
[1750135780694,0.98966886,656.2,655.91,1.224]
[1750135780889,0.98966886,656.19,655.91,1.224]
[1750135781190,0.98966886,656.18,655.91,1.224]
[1750135781389,0.98966886,656.17,655.91,1.224]
[1750135781595,0.98966886,656.16,655.91,1.224]
[1750135781792,0.98966886,656.15,655.91,1.224]
[1750135781990,0.98966886,656.14,655.91,1.224]
[1750135782290,0.98968704,656.13,655.91,1.224]
[1750135782494,0.98968704,656.12,655.91,1.224]
[1750135782698,0.98968704,656.11,655.91,1.224]
[1750135782995,0.98968704,656.1,655.91,1.224]
[1750135783194,0.98968704,656.22,655.91,1.224]
[1750135783400,1.1414199,656.25,655.91,1.224]
[1750135783401,0.98968704,656.21,655.91,1.224]
[1750135783695,0.98968704,656.2,655.91,1.224]
[1750135783995,0.98968704,656.19,655.91,1.224]
[1750135784196,1.50679085,656.18,655.91,1.224]
[1750135784396,0.98968704,656.17,655.91,1.224]
[1750135784594,0.98968704,656.16,655.91,1.224]
[1750135784795,0.98968704,656.15,655.91,1.224]
[1750135784998,0.98968704,656.14,655.91,1.224]
[1750135785200,0.98969081,656.13,655.91,1.224]
[1750135785401,0.98969081,656.12,655.91,1.224]
[1750135785601,0.98969081,656.11,655.91,1.224]
[1750135785798,0.98969081,656.1,655.91,1.224]
[1750135785998,0.98969081,656.09,655.91,1.224]
[1750135786200,0.98969081,656.08,655.91,1.224]
[1750135786400,0.98969081,656.07,655.91,1.224]
[1750135786601,0.98969081,656.06,655.91,1.224]
[1750135786800,1.50679634,656.19,655.91,1.224]
[1750135787102,1.50679634,656.18,655.91,1.224]
[1750135787299,0.98969081,656.17,655.91,1.224]
[1750135787497,0.98969081,656.16,655.91,1.224]
[1750135787696,1.1414199,656.21,655.91,1.224]
[1750135787697,0.98969081,656.15,655.91,1.224]
[1750135787900,0.98969081,656.14,655.91,1.224]
[1750135788201,0.9898192,656.13,655.91,1.224]
[1750135788497,0.9898192,656.12,655.91,1.224]
[1750135788700,0.9898192,656.11,655.91,1.224]
[1750135788897,0.98981656,656.1,655.91,1.224]
[1750135789100,0.98981656,656.09,655.91,1.224]
[1750135789298,0.98981656,656.08,655.91,1.224]
[1750135789496,0.51717283,656.2,655.91,1.224]
[1750135789497,0.98981656,656.07,655.91,1.224]
[1750135789798,1.1414199,656.22,655.91,1.224]
[1750135789799,1.5069821,656.18,655.91,1.224]
[1750135789999,0.98981656,656.17,655.91,1.224]
[1750135790198,0.98981656,656.16,655.91,1.224]
[1750135790397,0.98981656,656.15,655.91,1.224]
[1750135790601,0.98981656,656.14,655.91,1.224]
[1750135790802,1.1414199,656.22,655.91,1.224]
[1750135791101,1.50695466,656.21,655.91,1.224]
[1750135791302,1.50695466,656.2,655.91,1.224]
[1750135791500,1.50695466,656.19,655.91,1.224]
[1750135791698,1.50695466,656.18,655.91,1.224]
[1750135791902,0.98979466,656.17,655.91,1.224]
[1750135792100,0.98979466,656.16,655.91,1.224]
[1750135792302,0.98979466,656.15,655.91,2.468]
[1750135792499,0.98979466,656.14,655.91,2.468]
[1750135792703,0.98979466,656.13,655.91,2.468]
[1750135792902,0.98979466,656.12,655.91,2.468]
[1750135793105,0.98979466,656.11,655.91,2.468]
[1750135793302,0.98979466,656.1,655.91,2.468]
[1750135793505,0.98979466,656.09,655.91,2.468]
[1750135793808,0.98978875,656.08,655.91,2.468]
[1750135794105,0.98978875,656.07,655.91,2.468]
[1750135794304,1.50694566,656.19,655.91,2.468]
[1750135794506,0.98978875,656.18,655.91,2.468]
[1750135794706,0.98978875,656.17,655.91,2.468]
[1750135794909,0.98978875,656.16,655.91,2.468]
[1750135795106,0.98978875,656.15,655.91,2.468]
[1750135795305,0.98978875,656.14,655.91,2.468]
[1750135795509,0.98978875,656.13,655.91,2.468]
[1750135795809,0.98978875,656.12,655.91,2.468]
[1750135796006,0.98978875,656.11,655.91,2.468]
[1750135796207,0.98978875,656.1,655.91,2.468]
[1750135796412,0.98978875,656.09,655.91,2.468]
[1750135796608,0.98978269,656.08,655.91,2.468]
[1750135796815,1.5069396,656.21,655.91,2.468]
[1750135797010,0.98978269,656.2,655.91,2.468]
[1750135797209,0.98978269,656.19,655.91,2.468]
[1750135797513,0.98978269,656.18,655.91,2.468]
[1750135797711,0.98978269,656.17,655.91,2.468]
[1750135797912,0.98978269,656.16,655.91,2.468]
[1750135798208,0.98978269,656.15,655.91,2.468]
[1750135798412,0.98978269,656.14,655.91,2.468]
[1750135798609,0.98978269,656.13,655.91,2.468]
[1750135798814,0.98978269,656.12,655.91,2.468]
[1750135799014,0.98978269,656.11,655.91,2.468]
[1750135799215,0.98978269,656.1,655.91,2.468]
[1750135799514,1.50766794,656.23,655.91,2.468]
[1750135799716,0.99041003,656.22,655.91,2.468]
[1750135799913,0.99040623,656.21,655.91,2.468]
[1750135800114,0.99040623,656.2,655.91,2.468]
[1750135800416,0.99040623,656.19,655.91,2.468]
[1750135800710,0.99040623,656.18,655.91,2.468]
[1750135800912,1.1414199,656.25,655.91,2.468]
[1750135801113,1.50768706,656.24,655.91,2.468]
[1750135801314,1.50768706,656.23,655.91,2.468]
[1750135801511,0.99042259,656.22,655.91,2.468]
[1750135801713,0.99042259,656.21,655.91,2.468]
[1750135801917,0.9904537,656.2,655.91,2.468]
[1750135802114,0.9904537,656.19,655.92,1.256]
[1750135802315,0.9904537,656.18,655.92,1.256]
[1750135802515,0.9904537,656.17,655.92,1.256]
[1750135802812,0.9904537,656.16,655.92,1.256]
[1750135803113,0.9904537,656.15,655.92,1.256]
[1750135803313,0.9904537,656.14,655.92,1.256]
[1750135803513,0.9904537,656.13,655.92,1.256]
[1750135803717,0.9904537,656.12,655.92,1.256]
[1750135803917,0.9904537,656.11,655.92,1.256]
[1750135804113,0.9904537,656.1,655.92,1.256]
[1750135804316,0.9904537,656.09,655.92,1.256]
[1750135804518,0.9904537,656.22,655.92,1.256]
[1750135804814,0.9906782,656.21,655.93,0.983]
[1750135805017,0.9906782,656.2,655.93,0.983]
[1750135805316,0.9906782,656.19,655.93,0.983]
[1750135805518,0.9906782,656.18,655.93,0.983]
[1750135805718,0.99073853,656.17,655.93,0.983]
[1750135806018,0.99073853,656.16,655.93,0.983]
[1750135806219,0.99073853,656.15,655.93,0.983]
[1750135806422,0.99073853,656.14,655.93,0.983]
[1750135806616,0.99073853,656.13,655.93,0.983]
[1750135806818,0.99073853,656.12,655.93,0.983]
[1750135807020,0.99073853,656.11,655.93,0.983]
[1750135807317,0.99073853,656.1,655.93,0.983]
[1750135807518,0.99073853,656.09,655.93,0.983]
[1750135807721,1.50821248,656.22,655.93,0.983]
[1750135807921,0.99073853,656.21,655.93,0.983]
[1750135808119,0.99073853,656.2,655.93,0.983]
[1750135808417,0.99073853,656.19,655.93,0.983]
[1750135808721,0.99073853,656.18,655.93,0.983]
[1750135808921,1.50821248,656.17,655.93,0.983]
[1750135809118,0.99073853,656.16,655.93,0.983]
[1750135809318,0.99073853,656.15,655.93,0.983]
[1750135809619,0.99073853,656.14,655.93,0.983]
[1750135809925,0.99073853,656.13,655.93,0.983]
[1750135810124,0.99073853,656.12,655.93,0.983]
[1750135810424,0.51747846,656.19,655.93,0.983]
[1750135810717,0.9908298,656.18,655.93,0.983]
[1750135810919,0.9908298,656.17,655.93,0.983]
[1750135811117,0.9908298,656.16,655.93,0.983]
[1750135811322,1.14186142,656.22,655.93,0.983]
[1750135811521,1.50831467,656.21,655.93,0.983]
[1750135811720,1.50831467,656.2,655.93,0.983]
[1750135811919,1.50831467,656.19,655.93,0.983]
[1750135812125,0.99083582,656.18,655.93,0.983]
[1750135812319,0.99083582,656.17,655.93,0.983]
[1750135812524,0.99083582,656.16,655.93,0.983]
[1750135812822,0.99083582,656.15,655.93,0.983]
[1750135813022,0.99083582,656.14,655.93,0.983]
[1750135813221,0.99083582,656.13,655.93,0.983]
[1750135813422,0.99083479,656.12,655.93,0.983]
[1750135813624,0.99083479,656.11,655.93,0.983]
[1750135813925,0.26518933,656.44,655.93,0.983]
[1750135813926,0.99083479,656.1,655.93,0.983]
[1750135814122,0.99083479,656.09,655.93,0.983]
[1750135814321,0.99083479,656.08,655.93,0.983]
[1750135814520,1.50831454,656.21,655.93,0.983]
[1750135814726,0.99083479,656.2,655.93,0.983]
[1750135815022,0.99083479,656.19,655.93,0.983]
[1750135815224,0.99083479,656.18,655.93,0.983]
[1750135815423,0.99083479,656.17,655.93,0.983]
[1750135815724,0.99083479,656.16,655.93,0.983]
[1750135815925,0.99083479,656.15,655.93,0.983]
[1750135816129,0.99083479,656.14,655.93,0.983]
[1750135816325,0.99083479,656.13,655.93,0.983]
[1750135816529,0.99083479,656.12,655.93,0.983]
[1750135816728,0.99083479,656.11,655.93,0.983]
[1750135816929,0.99083479,656.1,655.93,0.983]
[1750135817130,0.99083479,656.09,655.93,0.983]
[1750135817426,0.99083479,656.08,655.93,0.983]
[1750135817629,0.99083479,656.2,655.93,0.983]
[1750135817929,0.99083479,656.19,655.93,0.983]
[1750135818228,0.99083479,656.18,655.93,0.983]
[1750135818525,0.99083479,656.17,655.93,0.983]
[1750135818728,0.99083479,656.16,655.93,0.983]
[1750135818929,0.99083479,656.15,655.93,0.983]
[1750135819130,0.99086061,656.14,655.93,0.983]
[1750135819429,0.99086061,656.13,655.93,0.983]
[1750135819631,0.99086061,656.12,655.93,0.983]
[1750135819926,0.99086061,656.11,655.93,0.983]
[1750135820127,0.99086061,656.1,655.93,0.983]
[1750135820326,0.99086061,656.09,655.93,0.983]
[1750135820627,0.99086036,656.08,655.93,0.983]
[1750135820828,0.99086036,656.19,655.93,0.983]
[1750135821026,0.99086036,656.18,655.93,0.983]
[1750135821330,0.99086036,656.17,655.93,0.983]
[1750135821530,0.99086036,656.16,655.93,0.983]
[1750135821730,1.14186142,656.23,655.93,0.983]
[1750135821934,1.50841424,656.22,655.93,0.983]
[1750135822130,1.50841424,656.21,655.93,0.983]
[1750135822332,1.50841424,656.2,655.93,0.983]
[1750135822531,0.99090028,656.19,655.93,0.983]
[1750135822731,0.99090028,656.18,655.93,0.983]
[1750135823027,0.99090028,656.17,655.93,0.983]
[1750135823228,0.99090028,656.16,655.93,0.983]
[1750135823433,0.99090028,656.15,655.93,0.983]
[1750135823627,0.51751396,656.21,655.93,0.983]
[1750135823628,0.99090028,656.14,655.93,0.983]
[1750135823828,0.99090028,656.13,655.93,0.983]
[1750135824032,0.99090028,656.12,655.93,0.983]
[1750135824229,0.99090028,656.11,655.93,0.983]
[1750135824535,0.99096388,656.1,655.93,0.983]
[1750135824729,0.51754717,656.2,655.93,0.983]
[1750135824730,0.99096388,656.09,655.93,0.983]
[1750135825032,0.99096388,656.08,655.93,0.983]
[1750135825238,0.99096388,656.07,655.93,0.983]
[1750135825534,0.99096388,656.06,655.93,0.983]
[1750135825729,1.50851105,656.19,655.93,0.983]
[1750135825929,1.50851105,656.18,655.93,0.983]
[1750135826229,1.14186142,656.21,655.93,0.983]
[1750135826230,1.50851105,656.17,655.93,0.983]
[1750135826436,0.99096388,656.16,655.94,1.234]
[1750135826635,0.99096388,656.15,655.94,1.234]
[1750135826933,0.99096388,656.14,655.94,1.234]
[1750135827129,0.99096388,656.13,655.94,1.234]
[1750135827329,0.99096388,656.12,655.94,1.234]
[1750135827534,0.99096388,656.11,655.94,1.234]
[1750135827732,0.99096388,656.1,655.94,1.234]
[1750135827929,0.51757106,656.18,655.94,1.234]
[1750135827930,0.99096388,656.09,655.94,1.234]
[1750135828134,0.99096388,656.08,655.94,1.234]
[1750135828332,0.99096388,656.07,655.94,1.234]
[1750135828534,0.99096388,656.06,655.94,1.234]
[1750135828734,1.50853494,656.17,655.94,1.234]
[1750135828935,0.99096388,656.16,655.94,1.234]
[1750135829135,0.99096388,656.15,655.94,1.234]
[1750135829330,0.99096388,656.14,655.94,1.234]
[1750135829533,0.99096388,656.13,655.94,1.234]
[1750135829735,0.99096388,656.12,655.94,1.234]
[1750135829932,0.99096388,656.11,655.94,1.234]
[1750135830130,0.99096388,656.1,655.94,1.234]
[1750135830434,0.99096388,656.09,655.94,1.234]
[1750135830631,0.99096388,656.08,655.94,1.234]
[1750135830931,0.99096388,656.07,655.94,1.234]
[1750135831130,1.14186142,656.21,655.94,1.234]
[1750135831131,0.99096388,656.06,655.94,1.234]
[1750135831330,1.50853494,656.17,655.94,1.234]
[1750135831533,0.99096388,656.16,655.94,1.234]
[1750135831834,0.99096388,656.15,655.94,1.234]
[1750135832132,0.99096388,656.14,655.94,1.234]
[1750135832331,0.99096388,656.13,655.94,1.234]
[1750135832533,0.99096388,656.12,655.94,1.234]
[1750135832732,0.99096388,656.11,655.94,1.234]
[1750135832932,0.99016473,656.1,655.94,1.234]
[1750135833133,0.99016473,656.09,655.94,1.234]
[1750135833431,0.99016473,656.08,655.94,1.234]
[1750135833636,0.99016473,656.07,655.94,1.234]
[1750135833833,0.99016473,656.06,655.94,1.234]
[1750135834034,0.99016473,656.16,655.94,1.234]
[1750135834237,0.99016473,656.15,655.94,1.234]
[1750135834533,2.27853007,656.42,655.94,1.234]
[1750135834534,0.99016473,656.14,655.94,1.234]
[1750135834838,0.99016473,656.13,655.94,1.234]
[1750135835036,0.99016473,656.12,655.94,1.234]
[1750135835235,0.99016473,656.11,655.94,1.234]
[1750135835438,0.99016473,656.1,655.94,1.234]
[1750135835636,0.99016473,656.09,655.94,1.234]
[1750135835940,0.99016773,656.08,655.94,1.234]
[1750135836133,0.99016773,656.19,655.94,1.234]
[1750135836338,0.99016773,656.18,655.94,1.234]
[1750135836538,0.99016773,656.17,655.94,1.234]
[1750135836739,0.99016773,656.16,655.94,1.234]
[1750135836939,0.99016773,656.15,655.94,1.234]
[1750135837138,0.99016773,656.14,655.94,1.234]
[1750135837335,0.99016773,656.13,655.94,1.234]
[1750135837536,0.99016773,656.12,655.94,1.234]
[1750135837736,0.99016773,656.11,655.94,1.234]
[1750135837941,0.99016773,656.1,655.94,1.234]
[1750135838142,0.99016773,656.09,655.94,1.234]
[1750135838437,0.99016773,656.08,655.94,1.234]
[1750135838744,0.99016773,656.22,655.94,1.234]
[1750135838944,1.50792515,656.4,655.94,1.234]
[1750135839144,0.99016773,656.39,655.94,1.234]
[1750135839345,0.99016773,656.38,655.94,1.234]
[1750135839540,0.99016773,656.37,655.94,1.234]
[1750135839844,0.26517619,656.57,655.94,1.234]
[1750135839845,0.99016773,656.36,655.94,1.234]
[1750135840140,0.99016773,656.35,655.94,1.234]
[1750135840344,1.50792515,656.45,655.94,1.234]
[1750135840540,0.26517619,656.57,655.94,1.234]
[1750135840541,0.99016773,656.44,655.94,1.234]
[1750135840841,0.99016773,656.43,655.94,1.234]
[1750135841045,1.5079545,656.48,655.94,1.234]
[1750135841243,0.99016773,656.47,655.94,1.234]
[1750135841441,0.96786581,656.46,655.94,1.234]
[1750135841741,0.96786581,656.45,655.94,1.234]
[1750135841940,0.96786581,656.48,655.95,1.302]
[1750135842143,0.96786581,656.47,655.95,1.302]
[1750135842340,0.51698274,656.49,655.95,1.302]
[1750135842341,0.96786581,656.46,655.95,1.302]
[1750135842542,0.96786581,656.45,655.95,1.302]
[1750135842741,0.96786581,656.44,655.95,1.302]
[1750135842945,0.96786581,656.48,655.95,1.302]
[1750135843141,0.96786581,656.47,655.95,1.302]
[1750135843343,0.96786581,656.46,655.95,1.302]
[1750135843642,0.96786581,656.45,655.95,1.302]
[1750135843849,0.96786581,656.44,655.95,1.302]
[1750135844047,0.96786581,656.48,655.95,1.302]
[1750135844347,0.96727194,656.48,655.95,1.302]
[1750135844745,0.96727194,656.49,655.95,1.302]
[1750135844944,0.96727228,656.48,655.95,1.302]
[1750135845244,0.96727228,656.49,655.95,1.302]
[1750135845445,0.96727228,656.48,655.95,1.302]
[1750135845646,0.96727228,656.49,655.96,1.542]
[1750135845845,0.96727228,656.48,655.96,1.542]
[1750135846156,0.96727228,656.49,655.96,1.542]
[1750135846350,0.96727228,656.48,655.96,1.542]
[1750135846655,0.96727228,656.49,655.96,1.542]
[1750135846850,0.96727228,656.48,655.96,1.542]
[1750135847054,0.96727228,656.5,655.96,1.542]
[1750135847351,1.48391236,656.51,655.96,1.542]
[1750135847554,0.96727228,656.5,655.96,1.542]
[1750135848554,0.96727228,656.49,655.96,1.542]
[1750135848750,1.6585015,656.51,655.96,1.542]